Workbook

Sheet Vestuvių biudžetas
B2: LISHA + DANIEL SUSITUOKTI
B5: KATEGORIJA | C5: NUMATOMOS IŠLAIDOS | D5: FAKTINĖS IŠLAIDOS | E5: NUOKRYPIS | F5: BIUDŽETO % | J5: Nesurikiuota | K5: Numatomos išlaidos | L5: Faktinės išlaidos | M5: Numatomų išlaidų įvertinta reikšmė | N5: Įvertinimas | O5: Nr. | P5: Surikiuota
B6: =P6 -> Pokylis | C6: =VLOOKUP(TBL_Suvestinė[[#This Row],[KATEGORIJA]],TBL_RankingData,2,FALSE) -> 14,500 EUR | D6: =IF(VLOOKUP(TBL_Suvestinė[[#This Row],[KATEGORIJA]],TBL_RankingData,3,FALSE)=0,"",VLOOKUP(TBL_Suvestinė[[#This Row],[KATEGORIJA]],TBL_RankingData,3,FALSE)) -> 12,800 EUR | E6: =IF(OR(TBL_Suvestinė[[#This Row],[NUMATOMOS IŠLAIDOS]]="",TBL_Suvestinė[[#This Row],[FAKTINĖS IŠLAIDOS]]=""),"",TBL_Suvestinė[[#This Row],[NUMATOMOS IŠLAIDOS]]-TBL_Suvestinė[[#This Row],[FAKTINĖS IŠLAIDOS]]) -> 1,700 EUR | F6: =TBL_Suvestinė[[#This Row],[NUMATOMOS IŠLAIDOS]]/SUM(TBL_Suvestinė[NUMATOMOS IŠLAIDOS]) -> 48.7% | J6: Pokylis | K6: =TBL_Pokylis[[#Totals],[NUMATOMA]] -> 14500 | L6: =TBL_Pokylis[[#Totals],[FAKTINĖS IŠLAIDOS]] -> 12800 | M6: =K6-O6/100 -> 14499.99 | N6: =_xlfn.RANK.AVG(M6,$M$6:$M$15) -> 1 | O6: 1 | P6: =INDEX(TBL_RankingData,MATCH(O6,$N$6:$N$15,0),1) -> Pokylis
B7: =P7 -> Apranga | C7: =VLOOKUP(TBL_Suvestinė[[#This Row],[KATEGORIJA]],TBL_RankingData,2,FALSE) -> 4,000 EUR | D7: =IF(VLOOKUP(TBL_Suvestinė[[#This Row],[KATEGORIJA]],TBL_RankingData,3,FALSE)=0,"",VLOOKUP(TBL_Suvestinė[[#This Row],[KATEGORIJA]],TBL_RankingData,3,FALSE)) -> 2,900 EUR | E7: =IF(OR(TBL_Suvestinė[[#This Row],[NUMATOMOS IŠLAIDOS]]="",TBL_Suvestinė[[#This Row],[FAKTINĖS IŠLAIDOS]]=""),"",TBL_Suvestinė[[#This Row],[NUMATOMOS IŠLAIDOS]]-TBL_Suvestinė[[#This Row],[FAKTINĖS IŠLAIDOS]]) -> 1,100 EUR | F7: =TBL_Suvestinė[[#This Row],[NUMATOMOS IŠLAIDOS]]/SUM(TBL_Suvestinė[NUMATOMOS IŠLAIDOS]) -> 13.4% | J7: Apranga | K7: =TBL_Apranga[[#Totals],[NUMATOMOS IŠLAIDOS]] -> 4000 | L7: =TBL_Apranga[[#Totals],[FAKTINĖS IŠLAIDOS]] -> 2900 | M7: =K7-O7/100 -> 3999.98 | N7: 2 | O7: 2 | P7: Apranga
B8: Gėlės ir dekoracijos | C8: =VLOOKUP(TBL_Suvestinė[[#This Row],[KATEGORIJA]],TBL_RankingData,2,FALSE) -> 3,000 EUR | D8: =IF(VLOOKUP(TBL_Suvestinė[[#This Row],[KATEGORIJA]],TBL_RankingData,3,FALSE)=0,"",VLOOKUP(TBL_Suvestinė[[#This Row],[KATEGORIJA]],TBL_RankingData,3,FALSE)) ->  | E8: =IF(OR(TBL_Suvestinė[[#This Row],[NUMATOMOS IŠLAIDOS]]="",TBL_Suvestinė[[#This Row],[FAKTINĖS IŠLAIDOS]]=""),"",TBL_Suvestinė[[#This Row],[NUMATOMOS IŠLAIDOS]]-TBL_Suvestinė[[#This Row],[FAKTINĖS IŠLAIDOS]]) ->  | F8: =TBL_Suvestinė[[#This Row],[NUMATOMOS IŠLAIDOS]]/SUM(TBL_Suvestinė[NUMATOMOS IŠLAIDOS]) -> 10.1% | J8: Gėlės ir dekoracijos | K8: =TBL_GėlėsIrDekoracijos[[#Totals],[NUMATOMOS IŠLAIDOS]] -> 3000 | L8: =TBL_GėlėsIrDekoracijos[[#Totals],[FAKTINĖS IŠLAIDOS]] -> 0 | M8: 2999.97 | N8: 3 | O8: 3 | P8: Gėlės ir dekoracijos
B9: Nuotraukos ir vaizdo įrašai | C9: =VLOOKUP(TBL_Suvestinė[[#This Row],[KATEGORIJA]],TBL_RankingData,2,FALSE) -> 2,500 EUR | D9: =IF(VLOOKUP(TBL_Suvestinė[[#This Row],[KATEGORIJA]],TBL_RankingData,3,FALSE)=0,"",VLOOKUP(TBL_Suvestinė[[#This Row],[KATEGORIJA]],TBL_RankingData,3,FALSE)) ->  | E9: =IF(OR(TBL_Suvestinė[[#This Row],[NUMATOMOS IŠLAIDOS]]="",TBL_Suvestinė[[#This Row],[FAKTINĖS IŠLAIDOS]]=""),"",TBL_Suvestinė[[#This Row],[NUMATOMOS IŠLAIDOS]]-TBL_Suvestinė[[#This Row],[FAKTINĖS IŠLAIDOS]]) ->  | F9: =TBL_Suvestinė[[#This Row],[NUMATOMOS IŠLAIDOS]]/SUM(TBL_Suvestinė[NUMATOMOS IŠLAIDOS]) -> 8.4% | J9: Muzika | K9: =TBL_Muzika[[#Totals],[NUMATOMOS IŠLAIDOS]] -> 1800 | L9: =TBL_Muzika[[#Totals],[FAKTINĖS IŠLAIDOS]] -> 0 | M9: 1799.96 | N9: 5 | O9: 4 | P9: Nuotraukos ir vaizdo įrašai
B10: Muzika | C10: =VLOOKUP(TBL_Suvestinė[[#This Row],[KATEGORIJA]],TBL_RankingData,2,FALSE) -> 1,800 EUR | D10: =IF(VLOOKUP(TBL_Suvestinė[[#This Row],[KATEGORIJA]],TBL_RankingData,3,FALSE)=0,"",VLOOKUP(TBL_Suvestinė[[#This Row],[KATEGORIJA]],TBL_RankingData,3,FALSE)) ->  | E10: =IF(OR(TBL_Suvestinė[[#This Row],[NUMATOMOS IŠLAIDOS]]="",TBL_Suvestinė[[#This Row],[FAKTINĖS IŠLAIDOS]]=""),"",TBL_Suvestinė[[#This Row],[NUMATOMOS IŠLAIDOS]]-TBL_Suvestinė[[#This Row],[FAKTINĖS IŠLAIDOS]]) ->  | F10: =TBL_Suvestinė[[#This Row],[NUMATOMOS IŠLAIDOS]]/SUM(TBL_Suvestinė[NUMATOMOS IŠLAIDOS]) -> 6.1% | J10: Nuotraukos ir vaizdo įrašai | K10: =TBL_FotografijaIrFilmavimas[[#Totals],[NUMATOMOS IŠLAIDOS]] -> 2500 | L10: =TBL_FotografijaIrFilmavimas[[#Totals],[FAKTINĖS IŠLAIDOS]] -> 0 | M10: 2499.95 | N10: 4 | O10: 5 | P10: Muzika
B11: Dovanėlės ir dovanos | C11: =VLOOKUP(TBL_Suvestinė[[#This Row],[KATEGORIJA]],TBL_RankingData,2,FALSE) -> 1,100 EUR | D11: =IF(VLOOKUP(TBL_Suvestinė[[#This Row],[KATEGORIJA]],TBL_RankingData,3,FALSE)=0,"",VLOOKUP(TBL_Suvestinė[[#This Row],[KATEGORIJA]],TBL_RankingData,3,FALSE)) ->  | E11: =IF(OR(TBL_Suvestinė[[#This Row],[NUMATOMOS IŠLAIDOS]]="",TBL_Suvestinė[[#This Row],[FAKTINĖS IŠLAIDOS]]=""),"",TBL_Suvestinė[[#This Row],[NUMATOMOS IŠLAIDOS]]-TBL_Suvestinė[[#This Row],[FAKTINĖS IŠLAIDOS]]) ->  | F11: =TBL_Suvestinė[[#This Row],[NUMATOMOS IŠLAIDOS]]/SUM(TBL_Suvestinė[NUMATOMOS IŠLAIDOS]) -> 3.7% | J11: Dovanėlės ir dovanos | K11: =TBL_DovanėlėsSvečiams[[#Totals],[NUMATOMOS IŠLAIDOS]] -> 1100 | L11: =TBL_DovanėlėsSvečiams[[#Totals],[FAKTINĖS IŠLAIDOS]] -> 0 | M11: 1099.94 | N11: 6 | O11: 6 | P11: Dovanėlės ir dovanos
B12: =P12 -> Vestuvių žiedai | C12: =VLOOKUP(TBL_Suvestinė[[#This Row],[KATEGORIJA]],TBL_RankingData,2,FALSE) -> 1,100 EUR | D12: =IF(VLOOKUP(TBL_Suvestinė[[#This Row],[KATEGORIJA]],TBL_RankingData,3,FALSE)=0,"",VLOOKUP(TBL_Suvestinė[[#This Row],[KATEGORIJA]],TBL_RankingData,3,FALSE)) ->  | E12: =IF(OR(TBL_Suvestinė[[#This Row],[NUMATOMOS IŠLAIDOS]]="",TBL_Suvestinė[[#This Row],[FAKTINĖS IŠLAIDOS]]=""),"",TBL_Suvestinė[[#This Row],[NUMATOMOS IŠLAIDOS]]-TBL_Suvestinė[[#This Row],[FAKTINĖS IŠLAIDOS]]) ->  | F12: =TBL_Suvestinė[[#This Row],[NUMATOMOS IŠLAIDOS]]/SUM(TBL_Suvestinė[NUMATOMOS IŠLAIDOS]) -> 3.7% | J12: Ceremonija | K12: =TBL_Ceremonija[[#Totals],[NUMATOMOS IŠLAIDOS]] -> 800 | L12: =TBL_Ceremonija[[#Totals],[FAKTINĖS IŠLAIDOS]] -> 0 | M12: 799.93 | N12: 8 | O12: 7 | P12: Vestuvių žiedai
B13: Ceremonija | C13: =VLOOKUP(TBL_Suvestinė[[#This Row],[KATEGORIJA]],TBL_RankingData,2,FALSE) -> 800 EUR | D13: =IF(VLOOKUP(TBL_Suvestinė[[#This Row],[KATEGORIJA]],TBL_RankingData,3,FALSE)=0,"",VLOOKUP(TBL_Suvestinė[[#This Row],[KATEGORIJA]],TBL_RankingData,3,FALSE)) ->  | E13: =IF(OR(TBL_Suvestinė[[#This Row],[NUMATOMOS IŠLAIDOS]]="",TBL_Suvestinė[[#This Row],[FAKTINĖS IŠLAIDOS]]=""),"",TBL_Suvestinė[[#This Row],[NUMATOMOS IŠLAIDOS]]-TBL_Suvestinė[[#This Row],[FAKTINĖS IŠLAIDOS]]) ->  | F13: =TBL_Suvestinė[[#This Row],[NUMATOMOS IŠLAIDOS]]/SUM(TBL_Suvestinė[NUMATOMOS IŠLAIDOS]) -> 2.7% | J13: Kanceliariniai reikmenys | K13: =TBL_RaštinėsReikmenys[[#Totals],[NUMATOMOS IŠLAIDOS]] -> 500 | L13: =TBL_RaštinėsReikmenys[[#Totals],[FAKTINĖS IŠLAIDOS]] -> 0 | M13: 499.92 | N13: 9 | O13: 8 | P13: Ceremonija
B14: Kanceliariniai reikmenys | C14: =VLOOKUP(TBL_Suvestinė[[#This Row],[KATEGORIJA]],TBL_RankingData,2,FALSE) -> 500 EUR | D14: =IF(VLOOKUP(TBL_Suvestinė[[#This Row],[KATEGORIJA]],TBL_RankingData,3,FALSE)=0,"",VLOOKUP(TBL_Suvestinė[[#This Row],[KATEGORIJA]],TBL_RankingData,3,FALSE)) ->  | E14: =IF(OR(TBL_Suvestinė[[#This Row],[NUMATOMOS IŠLAIDOS]]="",TBL_Suvestinė[[#This Row],[FAKTINĖS IŠLAIDOS]]=""),"",TBL_Suvestinė[[#This Row],[NUMATOMOS IŠLAIDOS]]-TBL_Suvestinė[[#This Row],[FAKTINĖS IŠLAIDOS]]) ->  | F14: =TBL_Suvestinė[[#This Row],[NUMATOMOS IŠLAIDOS]]/SUM(TBL_Suvestinė[NUMATOMOS IŠLAIDOS]) -> 1.7% | J14: Vestuvių žiedai | K14: =TBL_Žiedai[[#Totals],[NUMATOMOS IŠLAIDOS]] -> 1100 | L14: =TBL_Žiedai[[#Totals],[FAKTINĖS IŠLAIDOS]] -> 0 | M14: 1099.91 | N14: 7 | O14: 9 | P14: Kanceliariniai reikmenys
B15: Transportas | C15: =VLOOKUP(TBL_Suvestinė[[#This Row],[KATEGORIJA]],TBL_RankingData,2,FALSE) -> 450 EUR | D15: =IF(VLOOKUP(TBL_Suvestinė[[#This Row],[KATEGORIJA]],TBL_RankingData,3,FALSE)=0,"",VLOOKUP(TBL_Suvestinė[[#This Row],[KATEGORIJA]],TBL_RankingData,3,FALSE)) ->  | E15: =IF(OR(TBL_Suvestinė[[#This Row],[NUMATOMOS IŠLAIDOS]]="",TBL_Suvestinė[[#This Row],[FAKTINĖS IŠLAIDOS]]=""),"",TBL_Suvestinė[[#This Row],[NUMATOMOS IŠLAIDOS]]-TBL_Suvestinė[[#This Row],[FAKTINĖS IŠLAIDOS]]) ->  | F15: =TBL_Suvestinė[[#This Row],[NUMATOMOS IŠLAIDOS]]/SUM(TBL_Suvestinė[NUMATOMOS IŠLAIDOS]) -> 1.5% | J15: Transportas | K15: =TBL_Transportas[[#Totals],[NUMATOMOS IŠLAIDOS]] -> 450 | L15: =TBL_Transportas[[#Totals],[FAKTINĖS IŠLAIDOS]] -> 0 | M15: 449.9 | N15: 10 | O15: 10 | P15: Transportas
B16: Suma | C16: =SUBTOTAL(109,TBL_Suvestinė[NUMATOMOS IŠLAIDOS]) -> 29,750 EUR | D16: =SUBTOTAL(109,TBL_Suvestinė[FAKTINĖS IŠLAIDOS]) -> 15,700 EUR | E16: =TBL_Suvestinė[[#Totals],[NUMATOMOS IŠLAIDOS]]-TBL_Suvestinė[[#Totals],[FAKTINĖS IŠLAIDOS]] -> 14,050 EUR | F16: =SUBTOTAL(109,TBL_Suvestinė[BIUDŽETO %]) -> 100%

Sheet Išsami biudžeto informacija
B2: IŠSAMI BIUDŽETO INFORMACIJA
B4: POKYLIS | C4: NUMATOMA | D4: FAKTINĖS IŠLAIDOS | E4: NUOKRYPIS
B5: Vieta ir nuoma | C5: 8,000.00 EUR | D5: 7,800.00 EUR | E5: =IF(OR(TBL_Pokylis[[#This Row],[NUMATOMA]]="",TBL_Pokylis[[#This Row],[FAKTINĖS IŠLAIDOS]]=""),"",TBL_Pokylis[[#This Row],[NUMATOMA]]-TBL_Pokylis[[#This Row],[FAKTINĖS IŠLAIDOS]]) -> 200.00 EUR
B6: Maistas ir aptarnavimas | C6: 4,000.00 EUR | D6: 4,200.00 EUR | E6: =IF(OR(TBL_Pokylis[[#This Row],[NUMATOMA]]="",TBL_Pokylis[[#This Row],[FAKTINĖS IŠLAIDOS]]=""),"",TBL_Pokylis[[#This Row],[NUMATOMA]]-TBL_Pokylis[[#This Row],[FAKTINĖS IŠLAIDOS]]) -> -200.00 EUR
B7: Gėrimai | C7: 1,000.00 EUR | D7: 800.00 EUR | E7: =IF(OR(TBL_Pokylis[[#This Row],[NUMATOMA]]="",TBL_Pokylis[[#This Row],[FAKTINĖS IŠLAIDOS]]=""),"",TBL_Pokylis[[#This Row],[NUMATOMA]]-TBL_Pokylis[[#This Row],[FAKTINĖS IŠLAIDOS]]) -> 200.00 EUR
B8: Tortas | C8: 1,000.00 EUR | E8: =IF(OR(TBL_Pokylis[[#This Row],[NUMATOMA]]="",TBL_Pokylis[[#This Row],[FAKTINĖS IŠLAIDOS]]=""),"",TBL_Pokylis[[#This Row],[NUMATOMA]]-TBL_Pokylis[[#This Row],[FAKTINĖS IŠLAIDOS]]) -> 
B9: Papildomi mokesčiai | C9: 500.00 EUR | E9: =IF(OR(TBL_Pokylis[[#This Row],[NUMATOMA]]="",TBL_Pokylis[[#This Row],[FAKTINĖS IŠLAIDOS]]=""),"",TBL_Pokylis[[#This Row],[NUMATOMA]]-TBL_Pokylis[[#This Row],[FAKTINĖS IŠLAIDOS]]) -> 
B10: IŠ VISO UŽ POKYLĮ | C10: =SUBTOTAL(109,TBL_Pokylis[NUMATOMA]) -> 14,500.00 EUR | D10: =SUBTOTAL(109,TBL_Pokylis[FAKTINĖS IŠLAIDOS]) -> 12,800.00 EUR | E10: =TBL_Pokylis[[#Totals],[NUMATOMA]]-TBL_Pokylis[[#Totals],[FAKTINĖS IŠLAIDOS]] -> 1,700.00 EUR
B13: APRANGA | C13: NUMATOMOS IŠLAIDOS | D13: FAKTINĖS IŠLAIDOS | E13: NUOKRYPIS
B14: Kostiumai ir (arba) suknelės | C14: 3,000.00 EUR | D14: 2,900.00 EUR | E14: =IF(OR(TBL_Apranga[[#This Row],[NUMATOMOS IŠLAIDOS]]="",TBL_Apranga[[#This Row],[FAKTINĖS IŠLAIDOS]]=""),"",TBL_Apranga[[#This Row],[NUMATOMOS IŠLAIDOS]]-TBL_Apranga[[#This Row],[FAKTINĖS IŠLAIDOS]]) -> 100.00 EUR
B15: Pakeitimai | C15: 100.00 EUR | E15: =IF(OR(TBL_Apranga[[#This Row],[NUMATOMOS IŠLAIDOS]]="",TBL_Apranga[[#This Row],[FAKTINĖS IŠLAIDOS]]=""),"",TBL_Apranga[[#This Row],[NUMATOMOS IŠLAIDOS]]-TBL_Apranga[[#This Row],[FAKTINĖS IŠLAIDOS]]) -> 
B16: Skrybėlės ir skraistės | C16: 200.00 EUR | E16: =IF(OR(TBL_Apranga[[#This Row],[NUMATOMOS IŠLAIDOS]]="",TBL_Apranga[[#This Row],[FAKTINĖS IŠLAIDOS]]=""),"",TBL_Apranga[[#This Row],[NUMATOMOS IŠLAIDOS]]-TBL_Apranga[[#This Row],[FAKTINĖS IŠLAIDOS]]) -> 
B17: Aksesuarai | C17: 100.00 EUR | E17: =IF(OR(TBL_Apranga[[#This Row],[NUMATOMOS IŠLAIDOS]]="",TBL_Apranga[[#This Row],[FAKTINĖS IŠLAIDOS]]=""),"",TBL_Apranga[[#This Row],[NUMATOMOS IŠLAIDOS]]-TBL_Apranga[[#This Row],[FAKTINĖS IŠLAIDOS]]) -> 
B18: Šukuosena ir makiažas | C18: 500.00 EUR | E18: =IF(OR(TBL_Apranga[[#This Row],[NUMATOMOS IŠLAIDOS]]="",TBL_Apranga[[#This Row],[FAKTINĖS IŠLAIDOS]]=""),"",TBL_Apranga[[#This Row],[NUMATOMOS IŠLAIDOS]]-TBL_Apranga[[#This Row],[FAKTINĖS IŠLAIDOS]]) -> 
B19: Papildomi mokesčiai | C19: 100.00 EUR | E19: =IF(OR(TBL_Apranga[[#This Row],[NUMATOMOS IŠLAIDOS]]="",TBL_Apranga[[#This Row],[FAKTINĖS IŠLAIDOS]]=""),"",TBL_Apranga[[#This Row],[NUMATOMOS IŠLAIDOS]]-TBL_Apranga[[#This Row],[FAKTINĖS IŠLAIDOS]]) -> 
B20: BENDRA SUMA UŽ APRANGĄ | C20: =SUBTOTAL(109,TBL_Apranga[NUMATOMOS IŠLAIDOS]) -> 4,000.00 EUR | D20: =SUBTOTAL(109,TBL_Apranga[FAKTINĖS IŠLAIDOS]) -> 2,900.00 EUR | E20: =TBL_Apranga[[#Totals],[NUMATOMOS IŠLAIDOS]]-TBL_Apranga[[#Totals],[FAKTINĖS IŠLAIDOS]] -> 1,100.00 EUR
B23: GĖLĖS IR DEKORACIJOS | C23: NUMATOMOS IŠLAIDOS | D23: FAKTINĖS IŠLAIDOS | E23: NUOKRYPIS
B24: Gėlių išdėstymas ceremonijai | C24: 1,000.00 EUR | E24: =IF(OR(TBL_GėlėsIrDekoracijos[[#This Row],[NUMATOMOS IŠLAIDOS]]="",TBL_GėlėsIrDekoracijos[[#This Row],[FAKTINĖS IŠLAIDOS]]=""),"",TBL_GėlėsIrDekoracijos[[#This Row],[NUMATOMOS IŠLAIDOS]]-TBL_GėlėsIrDekoracijos[[#This Row],[FAKTINĖS IŠLAIDOS]]) -> 
B25: Gėlių mergaitės žiedai ir krepšelis | C25: 500.00 EUR | E25: =IF(OR(TBL_GėlėsIrDekoracijos[[#This Row],[NUMATOMOS IŠLAIDOS]]="",TBL_GėlėsIrDekoracijos[[#This Row],[FAKTINĖS IŠLAIDOS]]=""),"",TBL_GėlėsIrDekoracijos[[#This Row],[NUMATOMOS IŠLAIDOS]]-TBL_GėlėsIrDekoracijos[[#This Row],[FAKTINĖS IŠLAIDOS]]) -> 
B26: Žiedų pagalvėlė | C26: 100.00 EUR | E26: =IF(OR(TBL_GėlėsIrDekoracijos[[#This Row],[NUMATOMOS IŠLAIDOS]]="",TBL_GėlėsIrDekoracijos[[#This Row],[FAKTINĖS IŠLAIDOS]]=""),"",TBL_GėlėsIrDekoracijos[[#This Row],[NUMATOMOS IŠLAIDOS]]-TBL_GėlėsIrDekoracijos[[#This Row],[FAKTINĖS IŠLAIDOS]]) -> 
B27: Puokštės | C27: 500.00 EUR | E27: =IF(OR(TBL_GėlėsIrDekoracijos[[#This Row],[NUMATOMOS IŠLAIDOS]]="",TBL_GėlėsIrDekoracijos[[#This Row],[FAKTINĖS IŠLAIDOS]]=""),"",TBL_GėlėsIrDekoracijos[[#This Row],[NUMATOMOS IŠLAIDOS]]-TBL_GėlėsIrDekoracijos[[#This Row],[FAKTINĖS IŠLAIDOS]]) -> 
B28: Įsegami žiedai | C28: 100.00 EUR | E28: =IF(OR(TBL_GėlėsIrDekoracijos[[#This Row],[NUMATOMOS IŠLAIDOS]]="",TBL_GėlėsIrDekoracijos[[#This Row],[FAKTINĖS IŠLAIDOS]]=""),"",TBL_GėlėsIrDekoracijos[[#This Row],[NUMATOMOS IŠLAIDOS]]-TBL_GėlėsIrDekoracijos[[#This Row],[FAKTINĖS IŠLAIDOS]]) -> 
B29: Prie krūtinės segamos puokštelės | C29: 200.00 EUR | E29: =IF(OR(TBL_GėlėsIrDekoracijos[[#This Row],[NUMATOMOS IŠLAIDOS]]="",TBL_GėlėsIrDekoracijos[[#This Row],[FAKTINĖS IŠLAIDOS]]=""),"",TBL_GėlėsIrDekoracijos[[#This Row],[NUMATOMOS IŠLAIDOS]]-TBL_GėlėsIrDekoracijos[[#This Row],[FAKTINĖS IŠLAIDOS]]) -> 
B30: Sutikimo dekoracijos | C30: 300.00 EUR | E30: =IF(OR(TBL_GėlėsIrDekoracijos[[#This Row],[NUMATOMOS IŠLAIDOS]]="",TBL_GėlėsIrDekoracijos[[#This Row],[FAKTINĖS IŠLAIDOS]]=""),"",TBL_GėlėsIrDekoracijos[[#This Row],[NUMATOMOS IŠLAIDOS]]-TBL_GėlėsIrDekoracijos[[#This Row],[FAKTINĖS IŠLAIDOS]]) -> 
B31: Apšvietimas | C31: 200.00 EUR | E31: =IF(OR(TBL_GėlėsIrDekoracijos[[#This Row],[NUMATOMOS IŠLAIDOS]]="",TBL_GėlėsIrDekoracijos[[#This Row],[FAKTINĖS IŠLAIDOS]]=""),"",TBL_GėlėsIrDekoracijos[[#This Row],[NUMATOMOS IŠLAIDOS]]-TBL_GėlėsIrDekoracijos[[#This Row],[FAKTINĖS IŠLAIDOS]]) -> 
B32: Papildomi mokesčiai | C32: 100.00 EUR | E32: =IF(OR(TBL_GėlėsIrDekoracijos[[#This Row],[NUMATOMOS IŠLAIDOS]]="",TBL_GėlėsIrDekoracijos[[#This Row],[FAKTINĖS IŠLAIDOS]]=""),"",TBL_GėlėsIrDekoracijos[[#This Row],[NUMATOMOS IŠLAIDOS]]-TBL_GėlėsIrDekoracijos[[#This Row],[FAKTINĖS IŠLAIDOS]]) -> 
B33: IŠ VSO UŽ GĖLES IR DEKORACIJAS | C33: =SUBTOTAL(109,TBL_GėlėsIrDekoracijos[NUMATOMOS IŠLAIDOS]) -> 3,000.00 EUR | D33: =SUBTOTAL(109,TBL_GėlėsIrDekoracijos[FAKTINĖS IŠLAIDOS]) -> 0.00 EUR | E33: =TBL_GėlėsIrDekoracijos[[#Totals],[NUMATOMOS IŠLAIDOS]]-TBL_GėlėsIrDekoracijos[[#Totals],[FAKTINĖS IŠLAIDOS]] -> 3,000.00 EUR
B36: MUZIKA | C36: NUMATOMOS IŠLAIDOS | D36: FAKTINĖS IŠLAIDOS | E36: NUOKRYPIS
B37: Ceremonijos muzikantai | C37: 700.00 EUR | E37: =IF(OR(TBL_Muzika[[#This Row],[NUMATOMOS IŠLAIDOS]]="",TBL_Muzika[[#This Row],[FAKTINĖS IŠLAIDOS]]=""),"",TBL_Muzika[[#This Row],[NUMATOMOS IŠLAIDOS]]-TBL_Muzika[[#This Row],[FAKTINĖS IŠLAIDOS]]) -> 
B38: Kokteilių pertraukėlės muzikantai | C38: 300.00 EUR | E38: =IF(OR(TBL_Muzika[[#This Row],[NUMATOMOS IŠLAIDOS]]="",TBL_Muzika[[#This Row],[FAKTINĖS IŠLAIDOS]]=""),"",TBL_Muzika[[#This Row],[NUMATOMOS IŠLAIDOS]]-TBL_Muzika[[#This Row],[FAKTINĖS IŠLAIDOS]]) -> 
B39: Sutikimo grupė, vedėjas ar pramogos | C39: 200.00 EUR | E39: =IF(OR(TBL_Muzika[[#This Row],[NUMATOMOS IŠLAIDOS]]="",TBL_Muzika[[#This Row],[FAKTINĖS IŠLAIDOS]]=""),"",TBL_Muzika[[#This Row],[NUMATOMOS IŠLAIDOS]]-TBL_Muzika[[#This Row],[FAKTINĖS IŠLAIDOS]]) -> 
B40: Garso sistemos ar šokių aikštelės nuoma | C40: 400.00 EUR | E40: =IF(OR(TBL_Muzika[[#This Row],[NUMATOMOS IŠLAIDOS]]="",TBL_Muzika[[#This Row],[FAKTINĖS IŠLAIDOS]]=""),"",TBL_Muzika[[#This Row],[NUMATOMOS IŠLAIDOS]]-TBL_Muzika[[#This Row],[FAKTINĖS IŠLAIDOS]]) -> 
B41: Papildomi mokesčiai | C41: 200.00 EUR | E41: =IF(OR(TBL_Muzika[[#This Row],[NUMATOMOS IŠLAIDOS]]="",TBL_Muzika[[#This Row],[FAKTINĖS IŠLAIDOS]]=""),"",TBL_Muzika[[#This Row],[NUMATOMOS IŠLAIDOS]]-TBL_Muzika[[#This Row],[FAKTINĖS IŠLAIDOS]]) -> 
B42: IŠ VISO UŽ MUZIKĄ | C42: =SUBTOTAL(109,TBL_Muzika[NUMATOMOS IŠLAIDOS]) -> 1,800.00 EUR | D42: =SUBTOTAL(109,TBL_Muzika[FAKTINĖS IŠLAIDOS]) -> 0.00 EUR | E42: =TBL_Muzika[[#Totals],[NUMATOMOS IŠLAIDOS]]-TBL_Muzika[[#Totals],[FAKTINĖS IŠLAIDOS]] -> 1,800.00 EUR
B45: FOTOGRAFIJA IR FILMAVIMAS | C45: NUMATOMOS IŠLAIDOS | D45: FAKTINĖS IŠLAIDOS | E45: NUOKRYPIS
B46: Fotografija | C46: 1,000.00 EUR | E46: =IF(OR(TBL_FotografijaIrFilmavimas[[#This Row],[NUMATOMOS IŠLAIDOS]]="",TBL_FotografijaIrFilmavimas[[#This Row],[FAKTINĖS IŠLAIDOS]]=""),"",TBL_FotografijaIrFilmavimas[[#This Row],[NUMATOMOS IŠLAIDOS]]-TBL_FotografijaIrFilmavimas[[#This Row],[FAKTINĖS IŠLAIDOS]]) -> 
B47: Filmavimas ir vaizdinė medžiaga | C47: 800.00 EUR | E47: =IF(OR(TBL_FotografijaIrFilmavimas[[#This Row],[NUMATOMOS IŠLAIDOS]]="",TBL_FotografijaIrFilmavimas[[#This Row],[FAKTINĖS IŠLAIDOS]]=""),"",TBL_FotografijaIrFilmavimas[[#This Row],[NUMATOMOS IŠLAIDOS]]-TBL_FotografijaIrFilmavimas[[#This Row],[FAKTINĖS IŠLAIDOS]]) -> 
B48: Papildomos nuotraukos ir albumai | C48: 500.00 EUR | E48: =IF(OR(TBL_FotografijaIrFilmavimas[[#This Row],[NUMATOMOS IŠLAIDOS]]="",TBL_FotografijaIrFilmavimas[[#This Row],[FAKTINĖS IŠLAIDOS]]=""),"",TBL_FotografijaIrFilmavimas[[#This Row],[NUMATOMOS IŠLAIDOS]]-TBL_FotografijaIrFilmavimas[[#This Row],[FAKTINĖS IŠLAIDOS]]) -> 
B49: Papildomi mokesčiai | C49: 200.00 EUR | E49: =IF(OR(TBL_FotografijaIrFilmavimas[[#This Row],[NUMATOMOS IŠLAIDOS]]="",TBL_FotografijaIrFilmavimas[[#This Row],[FAKTINĖS IŠLAIDOS]]=""),"",TBL_FotografijaIrFilmavimas[[#This Row],[NUMATOMOS IŠLAIDOS]]-TBL_FotografijaIrFilmavimas[[#This Row],[FAKTINĖS IŠLAIDOS]]) -> 
B50: IŠ VISO UŽ FOTOGRAFIJĄ IR VAIZDO ĮRAŠĄ | C50: =SUBTOTAL(109,TBL_FotografijaIrFilmavimas[NUMATOMOS IŠLAIDOS]) -> 2,500.00 EUR | D50: =SUBTOTAL(109,TBL_FotografijaIrFilmavimas[FAKTINĖS IŠLAIDOS]) -> 0.00 EUR | E50: =TBL_FotografijaIrFilmavimas[[#Totals],[NUMATOMOS IŠLAIDOS]]-TBL_FotografijaIrFilmavimas[[#Totals],[FAKTINĖS IŠLAIDOS]] -> 2,500.00 EUR
B53: DOVANĖLĖS SVEČIAMS | C53: NUMATOMOS IŠLAIDOS | D53: FAKTINĖS IŠLAIDOS | E53: NUOKRYPIS
B54: Sveikinimo dovanos | C54: 700.00 EUR | E54: =IF(OR(TBL_DovanėlėsSvečiams[[#This Row],[NUMATOMOS IŠLAIDOS]]="",TBL_DovanėlėsSvečiams[[#This Row],[FAKTINĖS IŠLAIDOS]]=""),"",TBL_DovanėlėsSvečiams[[#This Row],[NUMATOMOS IŠLAIDOS]]-TBL_DovanėlėsSvečiams[[#This Row],[FAKTINĖS IŠLAIDOS]]) -> 
B55: Šventinės dovanos | C55: 200.00 EUR | E55: =IF(OR(TBL_DovanėlėsSvečiams[[#This Row],[NUMATOMOS IŠLAIDOS]]="",TBL_DovanėlėsSvečiams[[#This Row],[FAKTINĖS IŠLAIDOS]]=""),"",TBL_DovanėlėsSvečiams[[#This Row],[NUMATOMOS IŠLAIDOS]]-TBL_DovanėlėsSvečiams[[#This Row],[FAKTINĖS IŠLAIDOS]]) -> 
B56: Papildomi mokesčiai | C56: 200.00 EUR | E56: =IF(OR(TBL_DovanėlėsSvečiams[[#This Row],[NUMATOMOS IŠLAIDOS]]="",TBL_DovanėlėsSvečiams[[#This Row],[FAKTINĖS IŠLAIDOS]]=""),"",TBL_DovanėlėsSvečiams[[#This Row],[NUMATOMOS IŠLAIDOS]]-TBL_DovanėlėsSvečiams[[#This Row],[FAKTINĖS IŠLAIDOS]]) -> 
B57: IŠ VISO UŽ DOVANĖLES SVEČIAMS | C57: =SUBTOTAL(109,TBL_DovanėlėsSvečiams[NUMATOMOS IŠLAIDOS]) -> 1,100.00 EUR | D57: =SUBTOTAL(109,TBL_DovanėlėsSvečiams[FAKTINĖS IŠLAIDOS]) -> 0.00 EUR | E57: =TBL_DovanėlėsSvečiams[[#Totals],[NUMATOMOS IŠLAIDOS]]-TBL_DovanėlėsSvečiams[[#Totals],[FAKTINĖS IŠLAIDOS]] -> 1,100.00 EUR
B60: CEREMONIJA | C60: NUMATOMOS IŠLAIDOS | D60: FAKTINĖS IŠLAIDOS | E60: NUOKRYPIS
B61: Vietos mokestis | C61: 500.00 EUR | E61: =IF(OR(TBL_Ceremonija[[#This Row],[NUMATOMOS IŠLAIDOS]]="",TBL_Ceremonija[[#This Row],[FAKTINĖS IŠLAIDOS]]=""),"",TBL_Ceremonija[[#This Row],[NUMATOMOS IŠLAIDOS]]-TBL_Ceremonija[[#This Row],[FAKTINĖS IŠLAIDOS]]) -> 
B62: Padavėjo mokestis arba auka bažnyčiai | C62: 200.00 EUR | E62: =IF(OR(TBL_Ceremonija[[#This Row],[NUMATOMOS IŠLAIDOS]]="",TBL_Ceremonija[[#This Row],[FAKTINĖS IŠLAIDOS]]=""),"",TBL_Ceremonija[[#This Row],[NUMATOMOS IŠLAIDOS]]-TBL_Ceremonija[[#This Row],[FAKTINĖS IŠLAIDOS]]) -> 
B63: Papildomi mokesčiai | C63: 100.00 EUR | E63: =IF(OR(TBL_Ceremonija[[#This Row],[NUMATOMOS IŠLAIDOS]]="",TBL_Ceremonija[[#This Row],[FAKTINĖS IŠLAIDOS]]=""),"",TBL_Ceremonija[[#This Row],[NUMATOMOS IŠLAIDOS]]-TBL_Ceremonija[[#This Row],[FAKTINĖS IŠLAIDOS]]) -> 
B64: IŠ VISO UŽ CEREMONIJĄ | C64: =SUBTOTAL(109,TBL_Ceremonija[NUMATOMOS IŠLAIDOS]) -> 800.00 EUR | D64: =SUBTOTAL(109,TBL_Ceremonija[FAKTINĖS IŠLAIDOS]) -> 0.00 EUR | E64: =TBL_Ceremonija[[#Totals],[NUMATOMOS IŠLAIDOS]]-TBL_Ceremonija[[#Totals],[FAKTINĖS IŠLAIDOS]] -> 800.00 EUR
B67: RAŠTINĖS REIKMENYS | C67: NUMATOMOS IŠLAIDOS | D67: FAKTINĖS IŠLAIDOS | E67: NUOKRYPIS
B68: Atminimo kortelės | C68: 50.00 EUR | E68: =IF(OR(TBL_RaštinėsReikmenys[[#This Row],[NUMATOMOS IŠLAIDOS]]="",TBL_RaštinėsReikmenys[[#This Row],[FAKTINĖS IŠLAIDOS]]=""),"",TBL_RaštinėsReikmenys[[#This Row],[NUMATOMOS IŠLAIDOS]]-TBL_RaštinėsReikmenys[[#This Row],[FAKTINĖS IŠLAIDOS]]) -> 
B69: Kvietimai | C69: 100.00 EUR | E69: =IF(OR(TBL_RaštinėsReikmenys[[#This Row],[NUMATOMOS IŠLAIDOS]]="",TBL_RaštinėsReikmenys[[#This Row],[FAKTINĖS IŠLAIDOS]]=""),"",TBL_RaštinėsReikmenys[[#This Row],[NUMATOMOS IŠLAIDOS]]-TBL_RaštinėsReikmenys[[#This Row],[FAKTINĖS IŠLAIDOS]]) -> 
B70: Programos | C70: 50.00 EUR | E70: =IF(OR(TBL_RaštinėsReikmenys[[#This Row],[NUMATOMOS IŠLAIDOS]]="",TBL_RaštinėsReikmenys[[#This Row],[FAKTINĖS IŠLAIDOS]]=""),"",TBL_RaštinėsReikmenys[[#This Row],[NUMATOMOS IŠLAIDOS]]-TBL_RaštinėsReikmenys[[#This Row],[FAKTINĖS IŠLAIDOS]]) -> 
B71: Stalo ir vietų kortelės | C71: 50.00 EUR | E71: =IF(OR(TBL_RaštinėsReikmenys[[#This Row],[NUMATOMOS IŠLAIDOS]]="",TBL_RaštinėsReikmenys[[#This Row],[FAKTINĖS IŠLAIDOS]]=""),"",TBL_RaštinėsReikmenys[[#This Row],[NUMATOMOS IŠLAIDOS]]-TBL_RaštinėsReikmenys[[#This Row],[FAKTINĖS IŠLAIDOS]]) -> 
B72: Meniu kortelės | C72: 50.00 EUR | E72: =IF(OR(TBL_RaštinėsReikmenys[[#This Row],[NUMATOMOS IŠLAIDOS]]="",TBL_RaštinėsReikmenys[[#This Row],[FAKTINĖS IŠLAIDOS]]=""),"",TBL_RaštinėsReikmenys[[#This Row],[NUMATOMOS IŠLAIDOS]]-TBL_RaštinėsReikmenys[[#This Row],[FAKTINĖS IŠLAIDOS]]) -> 
B73: Padėkos kortelės | C73: 50.00 EUR | E73: =IF(OR(TBL_RaštinėsReikmenys[[#This Row],[NUMATOMOS IŠLAIDOS]]="",TBL_RaštinėsReikmenys[[#This Row],[FAKTINĖS IŠLAIDOS]]=""),"",TBL_RaštinėsReikmenys[[#This Row],[NUMATOMOS IŠLAIDOS]]-TBL_RaštinėsReikmenys[[#This Row],[FAKTINĖS IŠLAIDOS]]) -> 
B74: Pašto išlaidos | C74: 50.00 EUR | E74: =IF(OR(TBL_RaštinėsReikmenys[[#This Row],[NUMATOMOS IŠLAIDOS]]="",TBL_RaštinėsReikmenys[[#This Row],[FAKTINĖS IŠLAIDOS]]=""),"",TBL_RaštinėsReikmenys[[#This Row],[NUMATOMOS IŠLAIDOS]]-TBL_RaštinėsReikmenys[[#This Row],[FAKTINĖS IŠLAIDOS]]) -> 
B75: Papildomi mokesčiai | C75: 100.00 EUR | E75: =IF(OR(TBL_RaštinėsReikmenys[[#This Row],[NUMATOMOS IŠLAIDOS]]="",TBL_RaštinėsReikmenys[[#This Row],[FAKTINĖS IŠLAIDOS]]=""),"",TBL_RaštinėsReikmenys[[#This Row],[NUMATOMOS IŠLAIDOS]]-TBL_RaštinėsReikmenys[[#This Row],[FAKTINĖS IŠLAIDOS]]) -> 
B76: IŠ VISO UŽ RAŠTINĖS REIKMENIS | C76: =SUBTOTAL(109,TBL_RaštinėsReikmenys[NUMATOMOS IŠLAIDOS]) -> 500.00 EUR | D76: =SUBTOTAL(109,TBL_RaštinėsReikmenys[FAKTINĖS IŠLAIDOS]) -> 0.00 EUR | E76: =TBL_RaštinėsReikmenys[[#Totals],[NUMATOMOS IŠLAIDOS]]-TBL_RaštinėsReikmenys[[#Totals],[FAKTINĖS IŠLAIDOS]] -> 500.00 EUR
B79: VESTUVINIAI ŽIEDAI | C79: NUMATOMOS IŠLAIDOS | D79: FAKTINĖS IŠLAIDOS | E79: NUOKRYPIS
B80: Vestuvių žiedai | C80: 1,000.00 EUR | E80: =IF(OR(TBL_Žiedai[[#This Row],[NUMATOMOS IŠLAIDOS]]="",TBL_Žiedai[[#This Row],[FAKTINĖS IŠLAIDOS]]=""),"",TBL_Žiedai[[#This Row],[NUMATOMOS IŠLAIDOS]]-TBL_Žiedai[[#This Row],[FAKTINĖS IŠLAIDOS]]) -> 
B81: Žiedų aksesuarai | C81: 100.00 EUR | E81: =IF(OR(TBL_Žiedai[[#This Row],[NUMATOMOS IŠLAIDOS]]="",TBL_Žiedai[[#This Row],[FAKTINĖS IŠLAIDOS]]=""),"",TBL_Žiedai[[#This Row],[NUMATOMOS IŠLAIDOS]]-TBL_Žiedai[[#This Row],[FAKTINĖS IŠLAIDOS]]) -> 
B82: IŠ VISO UŽ VESTUVINIUS ŽIEDUS | C82: =SUBTOTAL(109,TBL_Žiedai[NUMATOMOS IŠLAIDOS]) -> 1,100.00 EUR | D82: =SUBTOTAL(109,TBL_Žiedai[FAKTINĖS IŠLAIDOS]) -> 0.00 EUR | E82: =TBL_Žiedai[[#Totals],[NUMATOMOS IŠLAIDOS]]-TBL_Žiedai[[#Totals],[FAKTINĖS IŠLAIDOS]] -> 1,100.00 EUR
B85: TRANSPORTAS | C85: NUMATOMOS IŠLAIDOS | D85: FAKTINĖS IŠLAIDOS | E85: NUOKRYPIS
B86: Pagrindinio automobilio nuoma | C86: 100.00 EUR | E86: =IF(OR(TBL_Transportas[[#This Row],[NUMATOMOS IŠLAIDOS]]="",TBL_Transportas[[#This Row],[FAKTINĖS IŠLAIDOS]]=""),"",TBL_Transportas[[#This Row],[NUMATOMOS IŠLAIDOS]]-TBL_Transportas[[#This Row],[FAKTINĖS IŠLAIDOS]]) -> 
B87: Svečių automobilių nuoma | C87: 100.00 EUR | E87: =IF(OR(TBL_Transportas[[#This Row],[NUMATOMOS IŠLAIDOS]]="",TBL_Transportas[[#This Row],[FAKTINĖS IŠLAIDOS]]=""),"",TBL_Transportas[[#This Row],[NUMATOMOS IŠLAIDOS]]-TBL_Transportas[[#This Row],[FAKTINĖS IŠLAIDOS]]) -> 
B88: Svečių transportavimas už miesto | C88: 100.00 EUR | E88: =IF(OR(TBL_Transportas[[#This Row],[NUMATOMOS IŠLAIDOS]]="",TBL_Transportas[[#This Row],[FAKTINĖS IŠLAIDOS]]=""),"",TBL_Transportas[[#This Row],[NUMATOMOS IŠLAIDOS]]-TBL_Transportas[[#This Row],[FAKTINĖS IŠLAIDOS]]) -> 
B89: Automobilių parkavimas | C89: 50.00 EUR | E89: =IF(OR(TBL_Transportas[[#This Row],[NUMATOMOS IŠLAIDOS]]="",TBL_Transportas[[#This Row],[FAKTINĖS IŠLAIDOS]]=""),"",TBL_Transportas[[#This Row],[NUMATOMOS IŠLAIDOS]]-TBL_Transportas[[#This Row],[FAKTINĖS IŠLAIDOS]]) -> 
B90: Papildomi mokesčiai | C90: 100.00 EUR | E90: =IF(OR(TBL_Transportas[[#This Row],[NUMATOMOS IŠLAIDOS]]="",TBL_Transportas[[#This Row],[FAKTINĖS IŠLAIDOS]]=""),"",TBL_Transportas[[#This Row],[NUMATOMOS IŠLAIDOS]]-TBL_Transportas[[#This Row],[FAKTINĖS IŠLAIDOS]]) -> 
B91: IŠ VISO UŽ TRANSPORTĄ | C91: =SUBTOTAL(109,TBL_Transportas[NUMATOMOS IŠLAIDOS]) -> 450.00 EUR | D91: =SUBTOTAL(109,TBL_Transportas[FAKTINĖS IŠLAIDOS]) -> 0.00 EUR | E91: =TBL_Transportas[[#Totals],[NUMATOMOS IŠLAIDOS]]-TBL_Transportas[[#Totals],[FAKTINĖS IŠLAIDOS]] -> 450.00 EUR
